bitfinex-derivatives/quotes_BNBF0:USTF0_20250510
["timestamp","ask_amount","ask_price","bid_price","bid_amount"]
[1746841621410,0.24637332,674.01,672.74,0.6]
[1746841621603,0.50484226,674.01,672.74,0.6]
[1746841621807,0.24637332,674.0,672.74,0.6]
[1746841622005,0.24637332,673.99,672.74,0.6]
[1746841622408,0.24637332,673.98,672.74,0.6]
[1746841622806,0.24637332,674.0,672.74,0.6]
[1746841623006,0.24637332,673.99,672.74,0.6]
[1746841623404,0.24637332,673.98,672.74,0.6]
[1746841623709,0.24637332,673.97,672.74,0.6]
[1746841624109,0.24637332,673.96,672.74,0.6]
[1746841624510,0.24637332,673.95,672.74,0.6]
[1746841624712,0.50484226,673.95,672.74,0.6]
[1746841624908,0.24637332,673.94,672.74,0.6]
[1746841625305,0.24637332,673.93,672.74,0.6]
[1746841625611,0.24637332,673.92,672.74,0.6]
[1746841626110,0.24637332,673.91,672.74,0.6]
[1746841626711,0.24637332,673.9,672.74,0.6]
[1746841626904,0.50484226,673.9,672.74,0.6]
[1746841627109,0.25846894,673.9,672.74,0.6]
[1746841627305,0.24625741,673.89,672.74,0.6]
[1746841627609,0.24625741,673.88,672.74,0.6]
[1746841628110,0.24625741,673.87,672.74,0.6]
[1746841628711,0.24625741,673.86,672.74,0.6]
[1746841629013,0.24625741,673.85,672.74,0.6]
[1746841629413,0.24625741,673.84,672.74,0.6]
[1746841629713,0.50469564,673.84,672.74,0.6]
[1746841630215,0.25843823,673.84,672.74,0.6]
[1746841630509,0.24625741,673.83,672.74,0.6]
[1746841632715,0.25843055,673.82,672.74,0.6]
[1746841633816,0.24625741,673.81,672.74,0.6]
[1746841634717,0.25843055,673.82,672.74,0.6]
[1746841635419,0.24614878,673.81,672.74,0.6]
[1746841635818,0.24614878,674.02,672.74,0.6]
[1746841636818,0.25840753,674.01,672.74,0.6]
[1746841637016,0.24614718,674.0,672.74,0.6]
[1746841638819,0.25840753,673.99,672.74,0.6]
[1746841639120,0.24614718,673.98,672.74,0.6]
[1746841640120,0.25840753,673.99,672.74,0.6]
[1746841640520,0.24614823,673.98,672.74,0.6]
[1746841641921,0.50455576,673.97,672.74,0.6]
[1746841642521,0.24614823,673.96,672.74,0.6]
[1746841646128,0.24614823,673.96,672.74,0.353]
[1746841647825,0.25844879,673.95,672.74,0.353]
[1746841648025,0.29676672,673.93,672.73,0.29729609]
[1746841648527,0.24614823,673.92,672.73,0.29729609]
[1746841648725,0.24614823,673.92,672.74,0.387]
[1746841649629,0.24614823,673.92,672.75,0.315]
[1746841650729,0.25846318,673.91,672.75,0.315]
[1746841651330,0.24614823,673.9,672.75,0.315]
[1746841659535,0.29678874,673.88,672.75,0.315]
[1746841659942,0.24614823,673.87,672.75,0.315]
[1746841662738,0.25843631,673.86,672.75,0.315]
[1746841663044,0.24614823,673.85,672.75,0.315]
[1746841664844,0.29681076,673.83,672.75,0.315]
[1746841665146,0.24614823,673.82,672.75,0.315]
[1746841665541,0.24614823,673.82,672.76,0.379]
[1746841668942,0.25843919,673.81,672.76,0.379]
[1746841669346,0.29682398,673.8,672.76,0.379]
[1746841669746,0.54297221,673.8,672.76,0.379]
[1746841670347,0.24614823,673.79,672.76,0.379]
[1746841670646,0.29682398,673.8,672.76,0.379]
[1746841671046,0.24615233,673.79,672.76,0.379]
[1746841671843,0.25844207,673.78,672.76,0.379]
[1746841672447,0.24615233,673.77,672.76,0.379]
[1746841672747,0.2968416,673.76,672.76,0.379]
[1746841673149,0.24615233,673.75,672.76,0.379]
[1746841674751,0.25845551,673.74,672.76,0.379]
[1746841675050,0.24615233,673.73,672.76,0.379]
[1746841677555,0.29685922,673.72,672.76,0.379]
[1746841677956,0.24615233,673.71,672.76,0.379]
[1746841678457,0.24615233,673.71,672.77,0.29727714]
[1746841679158,0.24615233,673.71,672.78,0.29727714]
[1746841679558,0.24615233,673.71,672.79,0.29727714]
[1746841679958,0.24615233,673.71,672.8,0.29727714]
[1746841680358,0.24615233,673.71,672.76,0.379]
[1746841680860,0.25845359,673.7,672.77,0.29727448]
[1746841681059,0.24615233,673.69,672.77,0.29727448]
[1746841681360,0.24615233,673.69,672.78,0.29727448]
[1746841681954,0.24615233,673.69,672.76,0.379]
[1746841683856,0.24615233,673.71,672.76,0.379]
[1746841684362,0.29685922,673.72,672.77,0.259]
[1746841684663,0.25853807,673.7,672.77,0.259]
[1746841686462,0.29685922,673.72,672.77,0.259]
[1746841686762,0.50484284,673.69,672.77,0.259]
[1746841687066,0.25851983,673.69,672.77,0.259]
[1746841687268,0.24632301,673.68,672.77,0.259]
[1746841687466,0.24632301,673.67,672.77,0.259]
[1746841687861,0.24632301,673.66,672.77,0.259]
[1746841688262,0.24632301,673.65,672.77,0.259]
[1746841688567,0.24632301,673.64,672.77,0.259]
[1746841688764,0.24632301,673.63,672.77,0.259]
[1746841688964,0.24632301,673.62,672.78,0.283]
[1746841689161,0.24632301,673.61,672.78,0.283]
[1746841689363,0.24632301,673.6,672.78,0.283]
[1746841689563,0.24632301,673.59,672.78,0.283]
[1746841689763,0.24632301,673.58,672.78,0.283]
[1746841689965,0.24632301,673.57,672.78,0.283]
[1746841690163,0.24632301,673.56,672.78,0.283]
[1746841690363,0.24632301,673.68,672.78,0.283]
[1746841690563,0.24632301,673.67,672.78,0.283]
[1746841690768,0.24632301,673.66,672.78,0.283]
[1746841690965,0.24632301,673.65,672.78,0.283]
[1746841691167,0.24632301,673.64,672.78,0.283]
[1746841691367,0.24632301,673.63,672.78,0.283]
[1746841691569,0.24632301,673.62,672.78,0.283]
[1746841691766,0.24632301,673.61,672.78,0.283]
[1746841691963,0.24632301,673.6,672.78,0.283]
[1746841692167,0.24632301,673.59,672.78,0.283]
[1746841692365,0.29685922,673.72,672.78,0.283]
[1746841692569,0.24632527,673.58,672.78,0.283]
[1746841692871,0.24632527,673.57,672.78,0.283]
[1746841694073,0.25851887,673.58,672.78,0.283]
[1746841694275,0.24633154,673.57,672.78,0.283]
[1746841695775,0.25853423,673.56,672.78,0.283]
[1746841696074,0.24633172,673.55,672.78,0.283]
[1746841697576,0.25853423,673.56,672.78,0.283]
[1746841697976,0.24633134,673.55,672.78,0.283]
[1746841698371,0.25853423,673.56,672.78,0.283]
[1746841698576,0.2463317,673.54,672.78,0.283]
[1746841698875,0.2463317,673.55,672.78,0.283]
[1746841701681,0.2463317,673.71,672.78,0.283]
[1746841701873,0.2463317,673.7,672.78,0.283]
[1746841702077,0.2463317,673.69,672.78,0.283]
[1746841702274,0.2463317,673.68,672.78,0.283]
[1746841702475,0.2463317,673.71,672.78,0.283]
[1746841702981,0.29687244,673.69,672.78,0.283]
[1746841704683,0.2463317,673.68,672.78,0.283]
[1746841704878,0.50483424,673.68,672.78,0.283]
[1746841705278,0.2463317,673.67,672.78,0.283]
[1746841707783,0.25850446,673.66,672.78,0.283]
[1746841707984,0.29689448,673.64,672.77,0.259]
[1746841708480,0.2463317,673.63,672.77,0.259]
[1746841709685,0.2969077,673.61,672.77,0.259]
[1746841710186,0.2463317,673.6,672.77,0.259]
[1746841710385,0.29692092,673.58,672.77,0.259]
[1746841710784,0.2463317,673.57,672.77,0.259]
[1746841711585,0.2463317,673.57,672.78,0.269]
[1746841712584,0.29692974,673.56,672.78,0.269]
[1746841713287,0.2463317,673.55,672.78,0.269]
[1746841714786,0.29692974,673.56,672.78,0.269]
[1746841714985,0.50483189,673.54,672.78,0.269]
[1746841715290,0.50483189,673.54,672.79,0.359]
[1746841715490,0.24629574,673.53,672.79,0.359]
[1746841716192,0.29694738,673.52,672.79,0.359]
[1746841716686,0.50482997,673.51,672.79,0.359]
[1746841716891,0.29695619,673.5,672.79,0.359]
[1746841717190,0.54325193,673.5,672.79,0.359]
[1746841717391,0.24629574,673.49,672.79,0.359]
[1746841717589,0.29696501,673.48,672.79,0.359]
[1746841718094,0.24629574,673.47,672.79,0.359]
[1746841718292,0.29697383,673.46,672.79,0.359]
[1746841718694,0.24629574,673.45,672.79,0.359]
[1746841718986,0.29698265,673.44,672.79,0.359]
[1746841719394,0.24629479,673.43,672.79,0.359]
[1746841719598,0.29699147,673.42,672.79,0.359]
[1746841719797,0.55553434,673.42,672.79,0.359]
[1746841720196,0.24629479,673.41,672.79,0.359]
[1746841722796,0.29700029,673.4,672.79,0.359]
[1746841723300,0.24629479,673.39,672.79,0.359]
[1746841723500,0.29700911,673.38,672.79,0.359]
[1746841723999,0.24629479,673.37,672.79,0.359]
[1746841724202,0.29701793,673.36,672.79,0.359]
[1746841724803,0.24629479,673.35,672.79,0.359]
[1746841725003,0.29702676,673.34,672.79,0.359]
[1746841725302,0.24629479,673.33,672.79,0.359]
[1746841725502,0.29703558,673.32,672.79,0.359]
[1746841725899,0.50491164,673.31,672.79,0.359]
[1746841726104,0.2970444,673.3,672.79,0.359]
[1746841726404,0.24629479,673.29,672.79,0.359]
[1746841726807,0.24629479,673.28,672.79,0.359]
[1746841727205,0.24629479,673.27,672.79,0.359]
[1746841727408,0.24629479,673.26,672.79,0.359]
[1746841727802,0.24629479,673.25,672.79,0.359]
[1746841728208,0.24629479,673.24,672.79,0.359]
[1746841728510,0.24629479,673.23,672.79,0.359]
[1746841728705,0.50491452,673.23,672.79,0.359]
[1746841729006,0.25861973,673.23,672.79,0.359]
[1746841729209,0.24629479,673.22,672.79,0.359]
[1746841730212,0.24629479,673.22,672.78,0.269]
[1746841731906,0.25862453,673.21,672.78,0.269]
[1746841732513,0.24641512,673.2,672.78,0.269]
[1746841732914,0.24641512,673.2,672.79,0.374]
[1746841734914,0.25865817,673.19,672.79,0.374]
[1746841735314,0.50507329,673.19,672.79,0.374]
[1746841736115,0.24641512,673.18,672.79,0.374]
[1746841736311,0.25865817,673.19,672.79,0.374]
[1746841736816,0.2464703,673.18,672.79,0.374]
[1746841738015,0.25861204,673.17,672.79,0.374]
[1746841739512,0.2464703,673.16,672.79,0.374]
[1746841740818,0.258613,673.15,672.79,0.374]
[1746841741319,0.2464703,673.14,672.79,0.374]
[1746841749030,0.2464703,673.14,672.73,0.29729609]
[1746841749925,0.25863318,673.13,672.73,0.29729609]
[1746841750230,0.2464703,673.12,672.73,0.29729609]
[1746841751132,0.2464703,673.12,672.74,0.265]
[1746841755934,0.25865144,673.11,672.74,0.265]
[1746841756133,0.2464703,673.1,672.74,0.265]
[1746841756437,0.25865144,673.11,672.74,0.265]
[1746841756935,0.24647716,673.1,672.74,0.265]
[1746841758836,0.25863607,673.09,672.74,0.265]
[1746841759338,0.24647716,673.08,672.74,0.265]
[1746841764740,0.24647716,673.29,672.74,0.265]
[1746841764937,0.25863607,673.07,672.74,0.265]
[1746841765138,0.24647716,673.29,672.74,0.265]
[1746841766042,0.25863607,673.28,672.74,0.265]
[1746841766541,0.24647716,673.27,672.74,0.265]
[1746841767841,0.24647716,673.29,672.74,0.265]
[1746841768040,0.25862646,673.26,672.74,0.265]
[1746841768536,0.24647716,673.25,672.74,0.265]
[1746841770940,0.25859282,673.24,672.74,0.265]
[1746841771643,0.24647716,673.23,672.74,0.265]
[1746841776143,0.25859282,673.24,672.74,0.265]
[1746841776545,0.2970444,673.3,672.74,0.265]
[1746841776842,0.24639801,673.23,672.74,0.265]
[1746841777039,0.25861685,673.23,672.74,0.265]
[1746841777343,0.24639801,673.22,672.74,0.265]
[1746841779749,0.24639801,673.29,672.74,0.265]
[1746841780051,0.25861685,673.21,672.74,0.265]
[1746841780247,0.24639801,673.29,672.74,0.265]
[1746841780851,0.25861685,673.28,672.74,0.265]
[1746841781850,0.24639801,673.27,672.74,0.265]
[1746841782155,0.24639801,673.27,672.73,0.29729609]
[1746841782744,0.24639801,673.29,672.73,0.29729609]
[1746841783752,0.24639801,673.29,672.74,0.281]
[1746841783953,0.25862165,673.28,672.74,0.281]
[1746841784554,0.24639801,673.27,672.74,0.281]
[1746841789355,0.24639801,673.29,672.74,0.281]
[1746841789855,0.25863414,673.28,672.74,0.281]
[1746841790358,0.24639801,673.27,672.74,0.281]
[1746841791953,0.24639801,673.29,672.74,0.281]
[1746841792153,0.24639801,673.26,672.74,0.281]
[1746841792855,0.25863414,673.25,672.74,0.281]
[1746841793355,0.24639801,673.24,672.74,0.281]
[1746841794755,0.25863414,673.23,672.74,0.281]
[1746841795255,0.24639801,673.22,672.74,0.281]
[1746841797951,0.24639801,673.29,672.74,0.281]
[1746841798156,0.25861685,673.21,672.74,0.281]
[1746841798359,0.24639801,673.29,672.74,0.281]
[1746841799060,0.25860339,673.28,672.74,0.281]
[1746841799560,0.24639801,673.27,672.74,0.281]
[1746841800960,0.25859763,673.26,672.74,0.281]
[1746841801559,0.24645,673.25,672.74,0.281]
[1746841803263,0.24645,673.29,672.74,0.281]
[1746841804963,0.25856689,673.28,672.74,0.281]
[1746841805464,0.24645,673.27,672.74,0.281]
[1746841806763,0.24645,673.29,672.74,0.281]
[1746841806963,0.25856689,673.28,672.74,0.281]
[1746841807163,0.24645,673.27,672.74,0.281]
[1746841809968,0.24645,673.27,672.73,0.29729609]
[1746841810670,0.25856689,673.28,672.73,0.29729609]
[1746841811068,0.24631769,673.27,672.73,0.29729609]
[1746841812269,0.24631769,673.27,672.74,0.268]
[1746841818272,0.25856689,673.28,672.74,0.268]
[1746841818572,0.2970444,673.3,672.74,0.268]
[1746841818768,0.24641473,673.27,672.74,0.268]
[1746841818972,0.50502965,673.27,672.74,0.268]
[1746841819370,0.25861492,673.27,672.74,0.268]
[1746841819775,0.24641473,673.26,672.74,0.268]
[1746841820873,0.29706646,673.25,672.74,0.268]
[1746841821476,0.24646242,673.24,672.74,0.268]
[1746841822075,0.29706646,673.25,672.74,0.268]
[1746841822371,0.2464688,673.24,672.74,0.268]
[1746841823673,0.2464688,673.23,672.7,0.293]
[1746841823874,0.2464688,673.23,672.66,0.29732703]
[1746841824074,0.2464688,673.22,672.55,0.05451084]
[1746841824776,0.50545325,673.21,672.55,0.05451084]
[1746841825377,0.2464688,673.2,672.55,0.05451084]
[1746841825781,0.25898445,673.21,672.55,0.05451084]
[1746841825782,0.2464688,673.19,672.55,0.05451084]
[1746841826276,0.2464688,673.18,672.55,0.05451084]
[1746841826477,0.2464688,673.17,672.55,0.05451084]
[1746841826978,0.2464688,673.16,672.55,0.05451084]
[1746841827179,0.2464688,673.15,672.55,0.05451084]
[1746841827578,0.2464688,673.14,672.55,0.05451084]
[1746841827878,0.50537425,673.14,672.55,0.05451084]
[1746841828078,0.2464688,673.13,672.55,0.05451084]
[1746841828378,0.2464688,673.12,672.55,0.05451084]
[1746841828581,0.2464688,673.11,672.55,0.05451084]
[1746841828875,0.2464688,673.1,672.55,0.05451084]
[1746841829279,0.2464688,673.09,672.55,0.05451084]
[1746841829477,0.25890545,673.14,672.55,0.05451084]
[1746841829779,0.24676716,673.13,672.55,0.05451084]
[1746841830178,0.24676716,673.12,672.55,0.05451084]
[1746841830479,0.24676716,673.11,672.55,0.05451084]
[1746841830981,0.24676716,673.1,672.55,0.05451084]
[1746841831278,0.24676716,673.09,672.55,0.05451084]
[1746841831679,0.24676716,673.08,672.55,0.05451084]
[1746841832177,0.24676716,673.07,672.55,0.05451084]
[1746841832374,0.25890545,673.14,672.55,0.05451084]
[1746841832680,0.24671645,673.13,672.55,0.05451084]
[1746841832981,0.24671645,673.12,672.55,0.05451084]
[1746841833280,0.24671645,673.11,672.55,0.05451084]
[1746841833586,0.24671645,673.1,672.55,0.05451084]
[1746841833774,0.50558531,673.1,672.55,0.05451084]
[1746841833976,0.24671645,673.09,672.55,0.05451084]
[1746841834176,0.24671645,673.08,672.55,0.05451084]
[1746841834783,0.24671645,673.07,672.55,0.05451084]
[1746841835081,0.24671645,673.09,672.55,0.05451084]
[1746841835684,0.29714149,673.08,672.55,0.05451084]
[1746841836185,0.24671645,673.07,672.55,0.05451084]
[1746841836784,0.25885249,673.06,672.55,0.05451084]
[1746841837084,0.24671645,673.05,672.55,0.05451084]
[1746841837979,0.25885249,673.06,672.55,0.05451084]
[1746841838385,0.2466555,673.05,672.55,0.05451084]
[1746841839986,0.2466555,673.04,672.55,0.05451084]
[1746841840384,0.2466555,673.03,672.55,0.05451084]
[1746841840685,0.25885249,673.06,672.55,0.05451084]
[1746841840886,0.24665678,673.05,672.55,0.05451084]
[1746841841287,0.24665678,673.04,672.55,0.05451084]
[1746841841582,0.24665678,673.03,672.55,0.05451084]
[1746841841888,0.24665678,673.02,672.55,0.05451084]
[1746841842282,0.24665678,673.01,672.55,0.05451084]
[1746841842689,0.24665678,673.0,672.55,0.05451084]
[1746841843089,0.24665678,673.05,672.55,0.05451084]
[1746841843991,0.29715915,673.04,672.55,0.05451084]
[1746841844691,0.24665678,673.03,672.55,0.05451084]
[1746841845893,0.2588602,673.02,672.55,0.05451084]
[1746841846794,0.24665678,673.01,672.55,0.05451084]
[1746841848689,0.24665678,673.0,672.55,0.05451084]
[1746841849090,0.24665678,672.99,672.55,0.05451084]
[1746841849493,0.24665678,672.98,672.55,0.05451084]
[1746841849988,0.24665678,672.97,672.55,0.05451084]
[1746841850192,0.24665678,672.96,672.55,0.05451084]
[1746841850492,0.24665678,672.95,672.55,0.05451084]
[1746841850893,0.24665678,672.94,672.55,0.05451084]
[1746841851395,0.24665678,672.93,672.55,0.05451084]
[1746841851790,0.24665678,672.92,672.55,0.05451084]
[1746841852205,0.24665678,672.91,672.55,0.05451084]
[1746841852498,0.24665678,672.9,672.55,0.05451084]
[1746841852797,0.25888716,672.89,672.55,0.05451084]
[1746841853198,0.24665678,672.88,672.55,0.05451084]
[1746841854498,0.29723423,672.87,672.55,0.05451084]
[1746841854700,0.24665678,672.86,672.55,0.05451084]
[1746841858000,0.25911462,672.85,672.55,0.05451084]
[1746841858501,0.24665678,672.84,672.55,0.05451084]
[1746841864006,0.2588342,672.83,672.55,0.05451084]
[1746841864807,0.24659548,672.82,672.55,0.05451084]
[1746841868310,0.29726074,672.81,672.55,0.05451084]
[1746841869104,0.2467231,672.8,672.55,0.05451084]
[1746841869804,0.25890931,672.79,672.55,0.05451084]
[1746841870309,0.2467231,672.78,672.55,0.05451084]
[1746841873009,0.25892472,672.77,672.55,0.05451084]
[1746841873513,0.2467231,672.76,672.55,0.05451084]
[1746841876910,0.2467231,672.75,672.55,0.01277763]
[1746841877107,0.2467231,672.75,672.29,0.238]
[1746841877709,0.2467231,672.74,672.29,0.238]
[1746841878109,0.2467231,672.73,672.29,0.238]
[1746841878508,0.2467231,672.72,672.29,0.238]
[1746841878908,0.50569695,672.71,672.29,0.238]
[1746841879107,0.50569695,672.71,671.87,0.273]
[1746841879308,0.2467231,672.7,671.87,0.273]
[1746841879510,0.2467231,672.69,671.87,0.273]
[1746841879712,0.2973226,672.67,671.87,0.273]
[1746841880410,0.2467231,672.66,671.87,0.273]
[1746841882011,0.25910979,672.65,671.87,0.273]
[1746841882611,0.54405897,672.64,671.87,0.273]
[1746841882911,0.54405897,672.64,671.88,0.306]
[1746841883309,0.2467231,672.63,671.88,0.306]
[1746841883815,0.2467231,672.62,671.88,0.306]
[1746841884115,0.2467231,672.61,671.88,0.306]
[1746841884415,0.2467231,672.63,671.88,0.306]
[1746841884810,0.25889582,672.62,671.88,0.306]
[1746841885011,0.2467231,672.61,671.88,0.306]
[1746841887914,0.25894591,672.6,671.88,0.306]
[1746841888312,0.2467231,672.59,671.88,0.306]
[1746841888514,0.25894591,672.6,671.89,0.321]
[1746841888815,0.24671505,672.59,671.89,0.321]
[1746841892923,0.29736239,672.58,671.89,0.321]
[1746841893321,0.24671505,672.57,671.89,0.321]
[1746841896823,0.25888523,672.56,671.89,0.321]
[1746841897024,0.24671505,672.55,671.89,0.321]
[1746841900227,0.24671505,672.54,671.89,0.321]
[1746841900527,0.24671505,672.53,671.89,0.321]
[1746841900827,0.24671505,672.52,671.89,0.321]
[1746841901221,0.24671505,672.51,671.89,0.321]
[1746841901628,0.24671505,672.5,671.89,0.321]
[1746841901927,0.24671505,672.49,671.89,0.321]
[1746841902229,0.24671505,672.48,671.89,0.321]
[1746841902628,0.24671505,672.47,671.89,0.321]
[1746841902928,0.24671505,672.46,671.89,0.321]
[1746841903328,0.24671505,672.45,671.89,0.321]
[1746841903623,0.24671505,672.44,671.89,0.321]
[1746841904029,0.24671505,672.55,671.89,0.321]
[1746841904225,2.1637206,672.55,671.89,0.321]
[1746841904426,0.24671505,672.54,671.89,0.321]
[1746841904730,0.24671505,672.53,671.89,0.321]
[1746841905131,0.24671505,672.52,671.89,0.321]
[1746841905431,0.24671505,672.51,669.93,0.9336209]
[1746841905631,0.24671505,672.51,670.52,0.25904422]
[1746841905931,0.24671505,672.5,670.53,0.29820125]
[1746841906332,0.24671505,672.49,669.3,0.9336209]
[1746841906526,0.24671505,672.49,669.32,0.29881073]
[1746841906730,0.24671505,672.49,669.33,1.79742356]
[1746841906927,0.24671505,672.48,669.34,1.79742356]
[1746841907128,0.24671505,672.47,669.35,1.77309315]
[1746841907329,0.24671505,672.47,669.36,1.7973281]
[1746841907528,0.24671505,672.46,669.37,1.49905199]
[1746841907731,0.24671505,672.5,669.38,2.04509315]
[1746841907928,0.24671505,672.5,669.39,1.49905199]
[1746841908129,0.24671505,672.5,669.4,1.77309315]
[1746841908328,0.24671505,672.5,669.41,1.7973281]
[1746841908534,0.24671505,672.5,669.42,1.49905199]
[1746841908729,0.24671505,672.5,669.43,1.77309315]
[1746841908936,0.25927195,672.49,669.44,1.49501627]
[1746841909234,0.25927195,672.49,669.45,1.79329238]
[1746841909533,0.24671505,672.48,669.46,1.76905743]
[1746841909736,0.24671505,672.48,669.47,2.06733354]
[1746841909934,0.24671505,672.47,669.48,1.76905743]
[1746841910137,0.24671505,672.47,669.49,1.79329238]
[1746841910337,0.24671505,672.46,669.5,1.49501627]
[1746841910533,0.24671505,672.45,669.51,1.76905743]
[1746841910736,0.24671505,672.45,669.52,1.49409945]
[1746841910936,0.24671505,672.45,669.53,1.49409945]
[1746841911138,0.24671505,672.44,669.54,1.79237556]
[1746841911340,0.24671505,672.44,669.55,1.49409945]
[1746841911638,0.24671505,672.43,669.56,1.79237556]
[1746841911838,0.24671505,672.43,669.57,1.49409945]
[1746841912035,0.24671505,672.43,669.58,1.49409945]
[1746841912232,0.24671505,672.57,669.59,2.06641672]
[1746841912437,0.24671505,672.57,669.6,1.49409945]
[1746841912634,0.24671505,672.57,669.61,1.49409945]
[1746841912837,0.24671505,672.57,669.62,2.06641672]
[1746841913038,0.2591397,672.56,669.63,1.49409945]
[1746841913238,0.24671505,672.55,669.64,1.76814061]
[1746841913537,0.24671505,672.55,669.65,2.06641672]
[1746841913738,0.24671505,672.55,669.66,1.76814061]
[1746841913935,0.24671505,672.55,669.67,1.49409945]
[1746841914141,0.24671505,672.55,669.68,1.49293362]
[1746841914340,0.24671505,672.55,669.69,1.49293362]
[1746841914540,0.24671505,672.55,669.7,1.49293362]
[1746841914741,0.24671505,672.55,669.71,1.49293362]
[1746841914941,0.24671505,672.55,669.72,1.79120973]
[1746841915142,0.24671505,672.55,669.73,1.76697478]
[1746841915443,0.24671505,672.55,669.74,1.49293362]
[1746841915742,0.24671505,672.55,669.75,1.79120973]
[1746841915935,0.24671505,672.55,669.76,1.48932262]
[1746841916139,0.24671505,672.55,669.77,1.48932262]
[1746841916343,0.24671505,672.55,669.78,1.48932262]
[1746841916541,0.24671505,672.55,669.79,2.06163989]
[1746841916737,0.24671505,672.55,669.8,1.48932262]
[1746841916938,0.24671505,672.55,669.81,1.78759873]
[1746841917241,0.24671505,672.55,669.82,1.48932262]
[1746841917438,0.24671505,672.55,669.83,1.78759873]
[1746841917739,0.24671505,672.55,669.84,1.78759873]
[1746841917936,0.24671505,672.55,669.85,1.48932262]
[1746841917937,0.25912041,672.54,669.85,1.48932262]
[1746841918137,0.25912041,672.54,669.86,1.78775691]
[1746841918341,0.24671505,672.53,669.87,1.4894808]
[1746841918542,0.24671505,672.53,670.0,0.29850746]
[1746841918739,0.24671505,672.53,670.01,1.4894808]
[1746841918946,0.24671505,672.53,670.02,1.4894808]
[1746841919145,0.24671505,672.53,670.03,1.4894808]
[1746841919438,0.24671505,672.53,670.04,1.76355601]
[1746841919644,0.24671505,672.53,670.05,1.48951485]
[1746841919947,0.24671505,672.53,670.16,0.29843619]
[1746841920144,0.24671505,672.53,670.17,1.48951485]
[1746841920338,0.24671505,672.53,670.18,1.48951485]
[1746841920537,0.24671505,672.53,670.19,1.78793768]
[1746841920742,0.24671505,672.53,670.2,1.76355601]
[1746841920942,0.25907314,672.52,670.21,1.78834717]
[1746841921142,0.25907314,672.52,670.22,1.49007106]
[1746841921444,0.24671505,672.51,670.23,1.76411222]
[1746841921644,0.24671505,672.51,670.24,1.78834717]
[1746841921841,0.24671505,672.51,670.25,1.78846718]
[1746841922042,0.24671505,672.51,670.26,1.49007106]
[1746841922237,0.24671505,672.51,670.27,2.06238833]
[1746841922442,0.29740219,672.49,670.28,1.78845382]
[1746841922643,0.29740219,672.49,670.29,1.76411222]
[1746841922940,0.24671505,672.48,670.3,1.49007106]
[1746841923141,0.24671505,672.48,670.31,1.78834717]
[1746841923341,0.24671505,672.48,670.32,1.49007106]
[1746841923542,0.24671505,672.48,670.33,1.49007106]
[1746841923745,0.24671505,672.48,670.34,1.49007106]
[1746841923951,0.25905964,672.47,670.35,1.78834717]
[1746841924146,0.25905964,672.47,670.36,1.48969132]
[1746841924343,0.25905964,672.47,670.37,1.48969132]
[1746841924546,0.25905964,672.47,670.38,1.78796743]
[1746841924741,0.24671505,672.46,670.39,1.48969132]
[1746841924947,0.24671505,672.46,670.4,1.78796743]
[1746841925147,0.24671505,672.46,670.41,1.48969132]
[1746841925441,0.24671505,672.46,670.42,1.76373248]
[1746841925640,0.24671505,672.46,670.43,1.48969132]
[1746841925846,0.24671505,672.45,670.44,0.55834542]
[1746841926043,0.24671505,672.45,670.46,0.29830265]
[1746841926242,0.24671505,672.44,670.47,1.49076712]
[1746841926446,0.24671505,672.44,670.49,0.29828931]
[1746841926642,0.29743315,672.42,670.5,1.49076712]
[1746841926848,0.29743315,672.42,670.51,1.49076712]
[1746841927043,0.24671505,672.41,670.52,1.76480828]
[1746841927241,0.29744199,672.4,670.54,0.29826706]
[1746841927446,0.29744199,672.4,670.55,1.78904323]
[1746841927648,0.29744199,672.4,670.57,0.29825372]
[1746841927849,0.29744199,672.4,670.58,1.49093869]
[1746841928049,0.24671505,672.39,670.59,1.49093869]
[1746841928245,0.24671505,672.39,670.61,0.29823593]
[1746841928548,0.29745084,672.38,670.62,1.49093869]
[1746841928749,0.29745084,672.38,670.64,0.29822259]
[1746841928945,0.29745084,672.38,670.65,1.49093869]
[1746841929144,0.24671505,672.37,670.66,1.49093869]
[1746841929346,0.29745084,672.38,670.67,1.49093869]